[Event "Serbian League 2024"]
[Site "Bajina Basta"]
[Date "2024.09.30"]
[Round "4.7"]
[White "Hovhannisyan, Robert"]
[Black "Visakh N R"]
[Result "1-0"]
[ECO "C48"]
[WhiteElo "2619"]
[BlackElo "2504"]
[Annotator "TA"]
[PlyCount "151"]
[EventDate "2024.09.26"]
[EventType "team-tourn"]
[EventCountry "SRB"]
[SourceTitle "playchess.com"]
[Source "ChessBase"]
[SourceQuality "1"]
[TimeControl "40/5400+30:1800+30"]

{[%evp 16,151,0,0,0,0,8,0,10,6,7,0,14,0,0,0,-6,-4,19,0,25,39,28,16,67,74,62,76,62,49,79,78,85,47,54,46,112,112,112,116,105,105,96,106,112,89,100,97,144,135,180,160,143,129,233,237,231,229,239,260,309,202,259,278,220,272,281,263,253,257,513,514,487,266,279,173,231,143,194,183,184,184,401,401,403,321,289,211,301,273,271,269,163,75,84,77,110,73,114,0,103,74,236,8,76,0,0,0,0,0,543,543,554,544,522,543,588,0,463,0,594,594,592,376,319,0,612,604,592,593,620,620,620,620,580,516,6842,6199]} 1. e4 {[%emt 0:00:04]} e5 {[%emt 0:02:20]} 2. Nf3 {[%emt 0:00:14]} Nc6 {[%emt 0:00:56]} 3. Nc3 {[%emt 0:00:35]} Nf6 {[%emt 0:00:07]} 4. Bb5 {[%emt 0:00:07]} Nd4 {[%emt 0:03:51]} 5. Nxd4 {[%emt 0:00:19]} exd4 {[%emt 0:00:06]} 6. e5 {[%emt 0:00:05]} dxc3 {[%emt 0:00:41]} 7. exf6 {[%emt 0:00:06]} Qxf6 {[%emt 0:00:05]} 8. dxc3 {[%emt 0:00:08]} Bc5 {[%emt 0:00:23]} 9. Qe2+ {[%emt 0:00:17]} Qe7 {[%emt 0:06:50]} 10. a4 {[%emt 0:00:28]} c6 {[%emt 0:01:46]} 11. Bd3 {[%emt 0:00:49]} d5 {[%emt 0:01:04] The position is equal.} 12. Qxe7+ {[%emt 0:09:10]} Kxe7 {[%emt 0:03:04]} 13. b4 {[%emt 0:10:37]} Bd6 {[%emt 0:00:22]} 14. Bg5+ {[%emt 0:01:09]} f6 {[%emt 0:01:40]} 15. Be3 {[%emt 0:00:05]} a5 {[%emt 0:04:30]} 16. b5 {[%emt 0:04:40]} Kf7 {[%emt 0:19:45]} 17. h4 {[%emt 0:13:11]} h5 {[%emt 0:04:45]} 18. bxc6 {[%emt 0:06:57]} bxc6 {[%emt 0:00:12]} 19. Rb1 {[%emt 0:00:07]} Ba6 {[%emt 0:30:43]} (19... Bd7 $11) 20. Kd2 $14 {[%emt 0:08:23]} Bxd3 {[%emt 0:00:06]} 21. Rb7+ {[%emt 0:00:52]} Kg6 {[%emt 0:01:36]} 22. Kxd3 {[%emt 0:00:49]} Rhe8 {[%emt 0:00:18]} 23. Rb6 $1 {[%emt 0:03:46]} Rec8 {[%emt 0:06:35]} 24. c4 {[%emt 0:02:37]} dxc4+ {[%emt 0:04:13]} 25. Kxc4 {[%emt 0:00:09]} Rc7 {[%emt 0:00:46]} (25... Kf5 $14) 26. Rd1 $16 {[%emt 0:01:47]} Bf8 {[%emt 0:00:02]} 27. Rdb1 {[%emt 0:09:48]} Rcc8 {[%emt 0:00:06] Inhibits Rb8.} 28. Bd4 {[%emt 0:06:06]} Kf5 {[%emt 0:01:52]} 29. R1b3 {[%emt 0:01:16]} Kg4 {[%emt 0:02:08]} 30. Rg3+ {[%emt 0:03:27]} Kf5 {[%emt 0:00:01]} 31. Bc5 {[%emt 0:01:27] White has more active pieces.} Bxc5 {[%emt 0:04:14]} (31... g5 $142) 32. Kxc5 {[%emt 0:00:04][%mdl 4096] Endgame. KRR-KRR} Ra7 {[%emt 0:00:02]} 33. c4 {[%emt 0:03:30]} Re7 {[%emt 0:00:23]} 34. Rxc6 {[%emt 0:01:33]} Re5+ {[%emt 0:00:04]} (34... Rb8 $16) 35. Kb6 $18 {[%emt 0:00:07]} Rb8+ {[%emt 0:00:10]} 36. Ka6 $1 {[%emt 0:01:43]} Rb4 {[%emt 0:01:00]} 37. Ra3 {[%emt 0:04:13]} (37. Rxg7 $6 Rxa4 38. Rg3 Re4) 37... Rb2 {[%emt 0:01:28]} 38. Rf3+ {[%emt 0:00:50]} Kg4 {[%emt 0:00:25]} 39. Rb6 {[%emt 0:03:20]} Rc2 {[%emt 0:00:46]} 40. Rb7 {[%emt 0:01:28]} g5 {[%emt 0:00:15]} 41. hxg5 {[%emt 0:31:10]} (41. Rxf6 $6 Rxc4 42. Rb5 Re8 $16) 41... Rxg5 {[%emt 0:12:10]} 42. Rc7 {[%emt 0:00:00]} (42. Rxf6 $6 Rxc4 43. Rb3 Rg8 $16) 42... Ra2 $2 {[%emt 0:01:47]} (42... f5 43. Rg3+ (43. Kxa5 h4 $18) 43... Kf4 44. Rxg5 (44. Kxa5 Rxg3 45. fxg3+ Kxg3 $11) 44... Kxg5) 43. Rd7 {[%emt 0:00:00][%cal Rd7d4]} (43. Rxf6 Rxa4 44. c5 Rc4 $18) 43... h4 {[%emt 0:00:38]} 44. Rxf6 {[%emt 0:00:00]} (44. Rc3 $142) 44... Rxa4 {[%emt 0:00:04]} 45. Rd4+ {[%emt 0:00:00]} Kh5 {[%emt 0:00:03]} 46. Rf8 {[%emt 0:00:00] Rff4 would now be deadly.} Ra2 {[%emt 0:01:07]} (46... Rc5 $16) 47. Rh8+ {[%emt 0:00:00]} Kg6 {[%emt 0:00:02]} 48. Rdxh4 {[%emt 0:00:00]} (48. Rhxh4 Rxf2 49. Rh8 Kg7 $14) 48... a4 $2 {[%emt 0:00:13]} (48... Rf5 {was necessary.} 49. R8h6+ Kg7) 49. Rg8+ {[%emt 0:00:00]} Kf5 {[%emt 0:03:28]} 50. Rf8+ {[%emt 0:00:00]} Ke6 {[%emt 0:01:36][%cal Oa2b2]} 51. Rh6+ $1 {[%emt 0:00:00]} Ke7 {[%emt 0:00:59]} 52. Rb8 {[%emt 0:00:00] And now Rb7+ would win.} Kf7 {[%emt 0:00:02]} 53. Rh7+ {[%emt 0:04:51]} Kg6 {[%emt 0:01:20]} 54. Rh3 {[%emt 0:01:33]} (54. Rg8+ $18 Kxh7 55. Rxg5) 54... Kg7 {[%emt 0:01:13]} 55. Rb7+ {[%emt 0:00:08]} Kg6 {[%emt 0:00:23]} 56. Rb6+ {[%emt 0:00:10]} Kg7 {[%emt 0:00:03]} 57. Rb7+ {[%emt 0:03:33]} Kg6 $1 {[%emt 0:00:01]} 58. Rb4 {[%emt 0:00:57] Rc3 is the strong threat.} Rxg2 $2 {[%emt 0:00:52]} (58... Rxf2 $16 59. Rc3 (59. Rxa4 Rf6+ 60. Kb7 Rf7+ 61. Kc6 Rf6+ 62. Kb7 Rxg2 $11) 59... Rf8) 59. Kb5 $2 {[%emt 0:00:30]} ({White should try} 59. Rc3 $18) 59... a3 {[%emt 0:01:26]} (59... Rg5+ $1 $11 60. c5 a3) 60. c5 {[%emt 0:00:30]} (60. Rhb3 $16) 60... Rgxf2 $11 {[%emt 0:00:25]} 61. Rg3+ {[%emt 0:00:40]} Kf7 {[%emt 0:13:28]} 62. Rc3 {[%emt 0:00:24]} Rfc2 $2 {[%emt 0:00:00][%mdl 8192] [#]} (62... Ke6 $11) 63. Rf3+ $1 $18 {[%emt 0:00:11]} Ke6 {[%emt 0:00:00]} 64. Kc6 {[%emt 0:00:09]} Ke5 {[%emt 0:00:00] Repels Re4+} 65. Re3+ {[%emt 0:00:12]} Kf5 {[%emt 0:00:00]} 66. Rf3+ {[%emt 0:00:08]} Ke5 {[%emt 0:00:00]} 67. Re3+ {[%emt 0:00:15]} Kf5 $1 {[%emt 0:00:00]} 68. Ra4 {[%emt 0:00:53]} Ra1 {[%emt 0:00:00]} 69. Rf3+ {[%emt 0:00:06]} (69. Rexa3 Re1 $11) 69... Ke5 {[%emt 0:00:00]} 70. Re3+ $2 {[%emt 0:00:08]} ({Not} 70. Raxa3 Rac1 $11) (70. Rfxa3 Re1 71. Ra1) 70... Kf5 $1 {[%emt 0:00:00]} 71. Raxa3 {[%emt 0:01:00] White is clearly winning.} ({And not} 71. Rexa3 Re1 $11) 71... Rac1 {[%emt 0:00:00] [#]} 72. Ra5 $1 {[%emt 0:00:06]} Kf6 {[%emt 0:00:00]} 73. Rb5 {[%emt 0:00:10]} Kf5 {[%emt 0:00:00]} 74. Reb3 {[%emt 0:00:42] Strongly threatening Rb1.} Ke6 {[%emt 0:00:00]} 75. R3b4 {[%emt 0:00:42]} Ke5 {[%emt 0:00:00]} (75... Rh1 $142 76. Re4+ Kf6) 76. Rb1 {[%emt 0:00:37] Weighted Error Value: White=0.24 (precise) /Black=0.28 (precise) .  Loses game:     	---       	Black=2      Missed win:     	White=1     	---        Mistake:       	White=4     	Black=8      Inaccurate:     	White=3     	Black=3      OK:         	White=30    	Black=19     Best:        	White=6     	Black=10     Strong:       	White=3     	Black=3} 1-0

[Event "Serbian League 2024"]
[Site "Bajina Basta"]
[Date "2024.09.30"]
[Round "4.8"]
[White "Vignesh N R"]
[Black "Grigoryan, Karen H."]
[Result "1/2-1/2"]
[ECO "B11"]
[WhiteElo "2511"]
[BlackElo "2569"]
[Annotator "RC"]
[PlyCount "47"]
[EventDate "2024.09.26"]
[EventType "team-tourn"]
[EventCountry "SRB"]
[SourceTitle "playchess.com"]
[Source "ChessBase"]
[SourceQuality "1"]
[TimeControl "40/5400+30:1800+30"]

1. e4 {[%emt 0:01:41]} c6 {[%emt 0:02:03]} 2. Nc3 {[%emt 0:01:51]} d5 {[%emt 0:00:12]} 3. Nf3 {[%emt 0:00:06]} Bg4 {[%emt 0:02:03]} 4. h3 {[%emt 0:00:07]} Bxf3 {[%emt 0:00:05]} 5. Qxf3 {[%emt 0:00:04]} e6 {[%emt 0:00:15]} 6. Be2 {[%emt 0:03:04]} Bc5 {[%emt 0:04:20]} 7. Qg3 {[%emt 0:06:50]} Bd4 {[%emt 0:03:29]} 8. exd5 {[%emt 0:00:50]} exd5 {[%emt 0:01:09]} 9. O-O {[%emt 0:00:49]} Nd7 {[%emt 0:02:36]} 10. Bd1 {[%emt 0:07:15]} Ne7 {[%emt 0:02:53]} 11. Ne2 {[%emt 0:00:06]} Be5 {[%emt 0:00:29]} 12. Qf3 {[%emt 0:00:27]} Ng6 {[%emt 0:05:09]} 13. d4 {[%emt 0:00:22]} Bd6 {[%emt 0:00:34]} 14. c3 {[%emt 0:06:34]} Qf6 {[%emt 0:01:26]} 15. Qe3+ {[%emt 0:10:00]} Qe6 {[%emt 0:02:18]} 16. Bc2 {[%emt 0:01:01]} Qxe3 {[%emt 0:05:15]} 17. Bxe3 {[%emt 0:00:30]} O-O {[%emt 0:00:45]} 18. Rae1 {[%emt 0:06:23]} Rfe8 {[%emt 0:01:47]} 19. g3 {[%emt 0:01:26]} Ngf8 {[%emt 0:02:52]} 20. Nf4 {[%emt 0:01:50]} g6 {[%emt 0:00:40]} 21. Kg2 {[%emt 0:00:46]} Ne6 {[%emt 0:00:25]} 22. Nd3 {[%emt 0:02:02]} Re7 {[%emt 0:02:04]} 23. f4 {[%emt 0:03:32]} Rae8 {[%emt 0:01:20]} 24. Ne5 {[%emt 0:06:29]} 1/2-1/2

[Event "Serbian League 2024"]
[Site "Bajina Basta"]
[Date "2024.09.30"]
[Round "4.9"]
[White "Stankovic, Milos"]
[Black "Milanovic, Danilo"]
[Result "1-0"]
[ECO "B01"]
[WhiteElo "2466"]
[BlackElo "2442"]
[Annotator "TA"]
[PlyCount "81"]
[EventDate "2024.09.26"]
[EventType "team-tourn"]
[EventCountry "SRB"]
[SourceTitle "playchess.com"]
[Source "ChessBase"]
[SourceQuality "1"]
[TimeControl "40/5400+30:1800+30"]

{[%evp 9,81,60,57,59,55,43,44,27,31,41,43,58,31,33,22,19,145,150,177,127,135,128,139,155,155,155,193,201,220,232,247,216,270,265,279,266,279,251,251,218,291,286,331,327,339,322,341,335,352,358,433,397,393,391,389,395,441,402,414,414,400,390,389,372,382,0,377,0,421,417,406,424,419,418]} 1. e4 {[%emt 0:00:18]} d5 {[%emt 0:07:10]} 2. exd5 {[%emt 0:00:30]} Qxd5 {[%emt 0:00:07]} 3. Nc3 {[%emt 0:00:30]} Qd6 {[%emt 0:00:14]} 4. d4 {[%emt 0:00:29][%cal Bd2d4,Bd4d5][%mdl 32]} Nf6 {[%emt 0:00:07]} 5. Nf3 {[%emt 0:00:34]} Nc6 {[%emt 0:00:47]} 6. Nb5 {[%emt 0:03:33]} Qd8 {[%emt 0:00:37] [#]} 7. d5 $1 {[%emt 0:06:50]} Nb4 {[%emt 0:03:41][%cal Oa7a6]} (7... Qxd5 $2 8. Nxc7+ Kd8 9. Nxd5 $18) (7... Nxd5 $2 8. Qxd5 e6 9. Qxd8+ Kxd8 10. Bf4 Bb4+ 11. c3 $18) 8. c4 {[%emt 0:00:33] White is slightly better.} Na6 {[%emt 0:05:44]} 9. Bd3 {[%emt 0:07:09]} e6 {[%emt 0:34:17]} 10. O-O {[%emt 0:07:14]} exd5 {[%emt 0:10:51]} 11. Re1+ {[%emt 0:11:49]} Be7 {[%emt 0:00:14]} 12. Qe2 $36 {[%emt 0:04:11][%mdl 2048] aiming for Bg5. White is more active.} Nc5 {[%emt 0:32:41]} (12... c6 $11 {remains equal.}) 13. Bf4 $16 {White is much more active.} O-O 14. Nxc7 ({Inferior is} 14. Qxe7 Nxd3 15. Nxc7 Nxe1 16. Qxe1 Bg4 17. Nxa8 Qxa8 $11) ({Better is} 14. Bxc7 $18 Qd7 15. Ne5) 14... Ne6 15. Nxa8 Nxf4 16. Bxh7+ (16. Qxe7 Nxd3 17. Qxd8 Rxd8 $14) 16... Kxh7 17. Qxe7 Qxe7 18. Rxe7 dxc4 19. Nc7 Ng6 20. Ree1 Bd7 21. Rad1 Bc6 22. Nd4 Be4 23. Ncb5 Nf4 24. f3 (24. Nxa7 $6 Bxg2 25. Nab5 Ra8 $16) 24... Bd3 25. g3 N4d5 26. Nd6 ({Resist} 26. Nxa7 Ra8) 26... a6 27. a4 b6 {[%cal Bb7b6,Bb6b5][%mdl 32]} 28. Nc6 {Inhibits Nb4.} Bc2 29. Rd4 Bb3 30. Nxc4 Bxa4 31. Ne7 Nxe7 32. Rxe7 b5 33. Ne5 Bb3 34. Ra7 Rc8 35. Rxa6 (35. Nxf7 Rc1+ 36. Kg2 Bxf7 37. Rxf7 Kg6 $18) 35... Rc1+ 36. Kg2 {[#] Intending Rh4+ and mate.} Rc2+ 37. Kg1 Rc1+ 38. Kg2 {White wants to mate with Rh4+.} Rc2+ 39. Kh3 {Rh4+ would kill now.} Be6+ 40. g4 Rxb2 {[%emt 0:00:00]} 41. Ra7 {Weighted Error Value: White=0.30/Black=0.19 (very precise) .  Mistake:       	White=1     	Black=1      Inaccurate:     	---       	Black=1      OK:         	White=18    	Black=18     Best:        	White=2     	Black=5} 1-0

[Event "Serbian League 2024"]
[Site "Bajina Basta"]
[Date "2024.09.30"]
[Round "4.10"]
[White "Pavlovic, Goran"]
[Black "Tadic, Stefan"]
[Result "1/2-1/2"]
[ECO "D18"]
[WhiteElo "2337"]
[BlackElo "2440"]
[Annotator "TA"]
[PlyCount "50"]
[EventDate "2024.09.26"]
[EventType "team-tourn"]
[EventCountry "SRB"]
[SourceTitle "playchess.com"]
[Source "ChessBase"]
[SourceQuality "1"]
[TimeControl "40/5400+30:1800+30"]

{[%evp 17,50,-5,0,0,5,0,0,-29,-33,-29,-36,-41,-29,-26,-33,-34,-43,-32,0,0,0,0,0,0,0,0,11,0,9,14,23,20,20,0,9]} 1. d4 {[%emt 0:00:04]} d5 {[%emt 0:00:13]} 2. Nf3 {[%emt 0:00:47]} Nf6 {[%emt 0:00:06]} 3. c4 {[%emt 0:00:31]} c6 {[%emt 0:00:06]} 4. Nc3 {[%emt 0:03:55]} dxc4 {[%emt 0:00:07]} 5. a4 {[%emt 0:00:19]} Bf5 {[%emt 0:00:07]} 6. e3 {[%emt 0:00:21]} e6 {[%emt 0:00:06]} 7. Bxc4 {[%emt 0:00:08]} Bb4 {[%emt 0:00:06]} 8. O-O {[%emt 0:00:48]} O-O {[%emt 0:00:06]} 9. h3 {[%emt 0:04:02]} h6 {[%emt 0:06:03]} 10. Qe2 {[%emt 0:07:42]} Bh7 {[%emt 0:00:27]} 11. Ne5 {[%emt 0:01:12]} Nbd7 {[%emt 0:01:28]} 12. Rd1 {[%emt 0:05:05]} Nxe5 {[%emt 0:13:48]} 13. dxe5 {[%emt 0:00:25]} Nd7 {[%emt 0:00:05]} 14. f4 {[%emt 0:02:53]} Qe7 {[%emt 0:02:44]} 15. Na2 {[%emt 0:00:26] [#] Strongly threatening Nxb4.} Nb6 {[%emt 0:08:48]} 16. Nxb4 {[%emt 0:13:05]} Qxb4 {[%emt 0:00:11]} 17. b3 {[%emt 0:00:43] Ba3 would now be deadly.} Rfd8 {[%emt 0:10:03]} 18. Ba3 $36 {[%emt 0:05:07][%mdl 2048] White fights for an advantage.} Rxd1+ {[%emt 0:00:11]} 19. Qxd1 {[%emt 0:00:22]} Qc3 {[%emt 0:00:05]} 20. Qd4 {[%emt 0:06:51]} Qxd4 {[%emt 0:11:35]} 21. exd4 {[%emt 0:00:13]} Be4 {[%emt 0:00:27]} 22. a5 {[%emt 0:02:13]} Nd5 {[%emt 0:03:28]} 23. Re1 {[%emt 0:02:39]} Bc2 {[%emt 0:00:23]} 24. Rc1 {[%emt 0:01:55]} Be4 {[%emt 0:00:04]} 25. Re1 {[%emt 0:00:39]} Bc2 {[%emt 0:00:08] Weighted Error Value: White=0.05 (flawless) /Black=0.05 (flawless) .  Inaccurate:     	White=1     	Black=1      OK:         	White=4     	Black=8      Best:        	---       	Black=1} 1/2-1/2

[Event "Serbian League 2024"]
[Site "Bajina Basta"]
[Date "2024.09.30"]
[Round "4.11"]
[White "Ratkovic, Milovan"]
[Black "Stankovic, Boris"]
[Result "1-0"]
[ECO "E71"]
[WhiteElo "2429"]
[BlackElo "2290"]
[Annotator "TA"]
[PlyCount "45"]
[EventDate "2024.09.26"]
[EventType "team-tourn"]
[EventCountry "SRB"]
[SourceTitle "playchess.com"]
[Source "ChessBase"]
[SourceQuality "1"]
[TimeControl "40/5400+30:1800+30"]

{[%evp 18,45,45,49,96,125,176,196,183,123,130,111,194,164,241,212,246,253,396,400,491,531,627,627,563,545,547,572,992,987]} 1. d4 {[%emt 0:00:29]} Nf6 {[%emt 0:07:03]} 2. c4 {[%emt 0:00:51]} g6 {[%emt 0:00:19]} 3. Nc3 {[%emt 0:00:43]} Bg7 {[%emt 0:00:07]} 4. e4 {[%emt 0:00:13]} d6 {[%emt 0:00:36]} 5. h3 {[%emt 0:00:48]} O-O {[%emt 0:00:08]} 6. Bg5 {[%emt 0:00:06]} c5 {[%emt 1:25:17]} 7. d5 e6 8. Bd3 h6 9. Be3 exd5 10. exd5 Nfd7 {E71: Konings-Indisch: 4 e4 d6 5 h3. is hier passender.} (10... Na6 $14) 11. Nf3 $16 {Wit is actiever. OK} Ne5 $146 {is een betere verdediging. Fout (0.5)} (11... f5 $16) ({Predecessor:} 11... Na6 12. Qd2 Nb4 13. Bb1 Re8 14. O-O Kh7 15. a3 Na6 16. Bc2 f5 17. Ba4 Re7 18. Rfe1 {1-0 Movsesian,S (2649)-Sikorova,O (2205) Pardubice Test 2020 (1.1)}) 12. Nxe5 $18 {Beste (Gemakkelijk)} Bxe5 {Wit staat duidelijk beter.} {Wit zou moeten spelen} 13. Bxh6 {Fout (0.6)} (13. Qd2 $18) 13... Re8 $16 {OK} 14. Kf1 {Hoopt vervolgens op Qd2. OK} Qf6 {gaat door met vechten. Fout (0.8)} (14... Qh4 $16 15. Qd2 Bxc3 16. bxc3 Nd7) 15. h4 Bd4 {was een poging waard. Fout (0.8)} (15... Bxc3 16. bxc3 Nd7) 16. Qc2 $18 {[#] Dreigt te winnen met Ne4. OK} (16. Ne4 $2 Rxe4 17. Qd2 Rxh4 18. Rxh4 Qxh4 $19) 16... Bf5 17. Bxf5 {OK} gxf5 {Geeft de voorkeur aan. Fout (1.4)} (17... Bxc3 18. Bxg6 (18. Qxc3 Qxc3 19. bxc3 gxf5 $18) 18... Qxg6 19. Qxg6+ (19. Qxc3 Qxh6 20. Qf3 Kf8 $17) 19... fxg6) 18. Bg5 {OK} Qe5 19. Rh3 {Sterke dreiging met Rg3. OK. Wit is duidelijk aan het winnen.} Nd7 20. Rg3 {OK} Kh8 {OK} 21. Qd1 {[#] Dreigt mat met Qh5+.} Nf8 22. Bh6 {OK} Qe7 {[%emt 0:00:00] Onnauwkeurig} 23. Bxf8 {Blunder waarde: Wit=0.10 (erg precies) /Zwart=0.80. Beste.  Fout:        	Wit=1      	Zwart=4      Onnauwkeurig:    	---       	Zwart=1      OK:         	Wit=8      	Zwart=2      Beste:        	Wit=2      	---} 1-0

[Event "Serbian League 2024"]
[Site "Bajina Basta"]
[Date "2024.09.30"]
[Round "4.12"]
[White "Petrovic, Aleksa"]
[Black "Tadic, Branko"]
[Result "1/2-1/2"]
[ECO "B50"]
[WhiteElo "2250"]
[BlackElo "2424"]
[Annotator "TA"]
[PlyCount "110"]
[EventDate "2024.09.26"]
[EventType "team-tourn"]
[EventCountry "SRB"]
[SourceTitle "playchess.com"]
[Source "ChessBase"]
[SourceQuality "1"]
[TimeControl "40/5400+30:1800+30"]

{[%evp 9,110,0,0,0,0,-26,-9,-9,-18,-28,-18,-21,-8,-4,0,0,-11,-20,-40,-38,-42,-62,-70,-59,-28,-25,0,0,12,0,23,31,31,-47,-34,-36,-39,-29,-32,-52,0,-46,0,-49,-16,-16,-8,-6,-3,0,0,0,31,0,0,0,0,0,0,0,6,-10,0,-20,0,0,0,0,0,-18,9,0,0,-8,-8,-8,14,12,12,0,0,0,0,-5,-5,-5,0,0,8,8,8,8,9,8,8,8,8,-8,-8,-8,-8,-8,-8]} 1. e4 {[%emt 0:00:03]} c5 {[%emt 0:07:49]} 2. Nf3 {[%emt 0:00:06]} d6 {[%emt 0:00:27]} 3. Be2 {[%emt 0:00:11]} Nf6 {[%emt 0:03:08]} 4. d3 {[%emt 0:00:07]} Nc6 {[%emt 0:00:18]} 5. O-O {[%emt 0:00:23]} g6 {[%emt 0:00:23]} 6. Re1 {[%emt 0:00:54]} Bg7 {[%emt 0:00:17]} 7. Bf1 {[%emt 0:00:32]} O-O {[%emt 0:00:54]} 8. c3 {[%emt 0:03:51]} e5 {[%emt 0:03:39]} 9. Nbd2 {[%emt 0:04:02]} h6 {[%emt 0:04:38]} 10. a3 {[%emt 0:02:26]} a5 {[%emt 0:18:19]} 11. a4 {[%emt 0:00:52]} Rb8 {[%emt 0:00:27]} 12. Nc4 {[%emt 0:04:39]} Be6 {[%emt 0:00:47]} 13. d4 {[%emt 0:08:43]} cxd4 {[%emt 0:12:58]} 14. cxd4 {[%emt 0:00:08]} exd4 {[%emt 0:07:53]} 15. Bf4 {[%emt 0:09:58]} Bxc4 {[%emt 0:11:37]} 16. Bxc4 {[%emt 0:00:08]} Nh5 {[%emt 0:00:02]} 17. Bd2 {[%emt 0:02:13]} Ne5 {[%emt 0:00:07]} 18. Bb5 {[%emt 0:04:03] Ein starkes Läuferpaar.} Qb6 {[%emt 0:25:47]} 19. Ra3 Rbc8 20. Rb3 {[%cal Ob5d7]} Qa7 {[#]} 21. g4 Nxg4 (21... Nf6 {vereinfacht} 22. h3 Nc6 23. Bc4 Nd7) 22. Bd7 {[%csl LRc8,LRg4]} Ne5 23. Bxc8 Rxc8 24. Nh4 {[%cal Oh4f5]} Nc4 (24... Nf6 $15) 25. Bc1 (25. Nf5 $11 Kh7 (25... gxf5 26. Bxh6 Bxh6 27. Qxh5 $16) 26. Bc1) 25... Rc5 (25... Nf6 $15) 26. Kh1 (26. Nf5 $11 {scheint genauer.}) 26... Qa6 27. Nf3 {[%cal Bh4f3,Bf3d4,Bd4b3][%mdl 32]} Nb6 {[%cal Bc4b6,Bb6a4,Ba4b2][%mdl 32]} 28. Qd3 {Qxa6 wäre nun fies.} (28. Nxd4 {sieht schärfer aus.} Rxc1 29. Qxc1 Bxd4 30. Qc7) 28... Qxd3 29. Rxd3 Nxa4 {[%emt 0:00:00] Und ...Rc4 würde nun gewinnen.} 30. Nxd4 b5 {[%emt 0:00:00]} 31. Nb3 Rc2 {[%emt 0:00:00] Die Stellung ist ausgeglichen.} 32. Rd2 (32. Nxa5 Bxb2 33. Nb3 (33. Bxh6 $2 Bc3 $19) 33... Nc5 (33... Rxf2 34. Rxd6 Bc3 35. Rg1 $11) 34. Nxc5 Bxc1 $15 (34... dxc5 35. Bxh6 b4 36. Rb1 $11)) 32... Rxd2 {[%emt 0:00:00]} 33. Bxd2 Nxb2 {[%emt 0:00:00]} 34. Bxa5 Nd3 {[%emt 0:00:00][%csl LRe1,LRf2] Gegen Rc1 gerichtet.} 35. Re2 Nhf4 {[%emt 0:00:00]} 36. Rd2 Nc5 {[%emt 0:00:00]} 37. Nxc5 dxc5 $11 {[%emt 0:00:00][%mdl 4096] Endspiel. KRB-KBN} 38. Rd8+ Kh7 {[%emt 0:00:00]} 39. Rd7 Kg8 {[%emt 0:00:00]} 40. Rd8+ Kh7 {[%emt 0:00:00]} 41. Rd7 b4 {[%emt 0:23:59]} 42. Rxf7 Nd3 {[%emt 0:00:30]} 43. Kg2 g5 {[%emt 0:00:30]} 44. Rb7 Kg6 {[%emt 0:00:30]} 45. Rb6+ Kh5 {[%emt 0:00:30]} 46. Kf1 Bd4 {[%emt 0:00:30][%cal Oc5c4] Weiss sollte ...c4! verhindern.} 47. Rb5 Kg4 {[%emt 0:00:30][%cal Og4f3] Droht stark ...Kf3!} (47... Bxf2 48. Ke2 c4 49. Bxb4 $14) (47... Nxf2 {vereinfacht} 48. Bxb4 Nxe4 49. Be1 Kg4) 48. Bb6 $1 Kf3 {[%emt 0:00:30] [#]} (48... Bxf2 $2 {ist das falsche Schlagen.} 49. Ke2 c4 50. Bxf2 $18) (48... Nxf2 49. Bxc5 Bxc5 50. Rxc5 Nxe4 51. Rb5 $18) 49. e5 Bxe5 {[%emt 0:00:30] Droht ...c4 und aus.} 50. Bxc5 Bxh2 {[%emt 0:00:30]} 51. Bxb4 Nxf2 {[%emt 0:00:30]} 52. Bf8 {Schwarz muss nun Rb3+ beachten.} Ng4 {[%emt 0:00:30] [#]} 53. Bxh6 $1 Nxh6 {[%emt 0:00:30]} 54. Rxg5 Ng4 {[%emt 0:00:30]} 55. Rxg4 Kxg4 {[%emt 0:00:30] Gewichteter Fehlerwert: Weiß=0.11 (sehr präzise) /Schwarz=0.10 (sehr präzise) .  Fehler:       	Weiß=3     	Schwarz=2     Ungenau:       	Weiß=2     	Schwarz=4     OK:         	Weiß=17    	Schwarz=17    Bester:       	Weiß=3     	Schwarz=3     Stark:        	Weiß=1     	---        Brilliant:      	Weiß=1     	---} 1/2-1/2